fUST/lending_fUST_20241226
["ID","MTS","AMOUNT","RATE_DAILY","PERIOD"]
[346684455,1735179054419,-2933.66,0.00013525,2]
[346684456,1735179054428,-981.76,0.00013525,2]
[346684457,1735179054437,-500.0,0.00013525,2]
[346684458,1735179054446,-1012.38,0.00013525,2]
[346684459,1735179054455,-523.9,0.00013525,2]
[346684460,1735179054464,-589.78,0.00013525,2]
[346684461,1735179054474,-500.0,0.00013525,2]
[346684462,1735179054484,-500.0,0.00013525,2]
[346684463,1735179054493,-1647.1,0.00013525,2]
[346684464,1735179054502,-500.0,0.00013525,2]
[346684465,1735179054511,-500.0,0.00013525,2]
[346684466,1735179054520,-470.91,0.00013526,2]
[346684467,1735179054529,-500.0,0.00013526,2]
[346684468,1735179054538,-477.9,0.00013526,2]
[346684469,1735179054547,-500.0,0.00013526,2]
[346684470,1735179054556,-500.0,0.00013526,2]
[346684471,1735179054565,-500.0,0.00013526,2]
[346684472,1735179054574,-355.17,0.00013526,2]
[346684473,1735179054583,-500.0,0.00013526,2]
[346684474,1735179054594,-500.0,0.00013526,2]
[346684475,1735179054603,-500.0,0.00013526,2]
[346684476,1735179054612,-503.40224474,0.00013526,2]
[346684477,1735179054621,-500.0,0.00013526,2]
[346684478,1735179054631,-284.64,0.00013526,2]
[346684479,1735179054640,-233.34,0.00013526,2]
[346684480,1735179054649,-500.0,0.00013526,2]
[346684481,1735179054658,-357.9,0.00013526,2]
[346684482,1735179054668,-641.54,0.00013526,2]
[346684483,1735179054677,-393.84,0.00013526,2]
[346684484,1735179054686,-1790.25,0.00013526,2]
[346684485,1735179054696,-500.0,0.00013526,2]
[346684486,1735179054705,-500.0,0.00013526,2]
[346684487,1735179054714,-500.0,0.00013526,2]
[346684488,1735179054723,-500.0,0.00013526,2]
[346684489,1735179054733,-500.0,0.00013526,2]
[346684490,1735179054742,-355.75021556,0.00013526,2]
[346684491,1735179054751,-500.0,0.00013526,2]
[346684492,1735179054761,-500.0,0.00013526,2]
[346684493,1735179054770,-500.0,0.00013526,2]
[346684494,1735179054780,-168.51,0.00013526,2]
[346684495,1735179054789,-627.92,0.00013526,2]
[346684496,1735179054798,-500.0,0.00013526,2]
[346684497,1735179054808,-500.0,0.00013526,2]
[346684498,1735179054818,-500.0,0.00013526,2]
[346684499,1735179054827,-500.0,0.00013526,2]
[346684500,1735179054837,-528.89779292,0.00013526,2]
[346684501,1735179054846,-500.0,0.00013526,2]
[346684502,1735179054855,-452.16885489,0.00013526,2]
[346684503,1735179054864,-237.164498,0.00013526,2]
[346684504,1735179054874,-2082.25,0.00013526,2]
[346684505,1735179054883,-500.0,0.00013526,2]
[346684506,1735179054893,-500.0,0.00013526,2]
[346684507,1735179054903,-501.31956647,0.00013526,2]
[346684508,1735179054912,-1371.26,0.00013526,2]
[346684509,1735179054921,-500.0,0.00013527,2]
[346684510,1735179054930,-151.0,0.00013527,2]
[346684511,1735179054939,-151.0,0.00013527,2]
[346684512,1735179054949,-500.0,0.00013527,2]
[346684513,1735179054959,-500.0,0.00013527,2]
[346684514,1735179054968,-500.0,0.00013527,2]
[346684515,1735179054978,-500.0,0.00013527,2]
[346684516,1735179054988,-577.77,0.00013527,2]
[346684517,1735179054997,-500.0,0.00013527,2]
[346684518,1735179055008,-500.0,0.00013527,2]
[346684519,1735179055017,-500.0,0.00013527,2]
[346684520,1735179055027,-500.0,0.00013527,2]
[346684521,1735179055036,-599.34,0.00013527,2]
[346684522,1735179055046,-500.0,0.00013527,2]
[346684523,1735179055055,-390.06658013,0.00013528,2]
[346684524,1735179055065,-500.0,0.00013528,2]
[346684525,1735179055074,-556.04,0.00013528,2]
[346684526,1735179055087,-500.0,0.00013529,2]
[346684527,1735179055097,-500.0,0.00013529,2]
[346684528,1735179055174,-500.0,0.00013529,2]
[346684529,1735179055184,-151.0,0.00013529,2]
[346684530,1735179055194,-386.02941,0.00013529,2]
[346684531,1735179055203,-386.02941,0.00013529,2]
[346684532,1735179055213,-236.366,0.00013562,2]
[346684533,1735179055222,-166.08030436,0.00013683,2]
[346684534,1735179055232,-500.0,0.00013698,2]
[346684535,1735179055242,-500.0,0.00013698,2]
[346684536,1735179055251,-500.0,0.00013698,2]
[346684537,1735179055261,-500.0,0.00013698,2]
[346684538,1735179055271,-504.39610087,0.00013698,2]
[346684539,1735179055280,-225.815891,0.00013698,2]
[346684540,1735179055290,-225.815891,0.00013698,2]
[346684541,1735179055300,-151.0,0.000137,2]
[346684542,1735179055310,-500.0,0.00013798,2]
[346684543,1735179055320,-500.0,0.00013798,2]
[346684544,1735179055329,-626.67,0.00013798,2]
[346684545,1735179055339,-500.0,0.00013798,2]
[346684546,1735179055348,-500.0,0.00013798,2]
[346684547,1735179055358,-500.0,0.00013799,2]
[346684548,1735179055368,-362.49624149,0.00013799,2]
[346684549,1735179055377,-609.22982274,0.00013799,2]
[346684550,1735179055386,-2933.66,0.00013799,2]
[346684551,1735179055396,-981.76,0.00013799,2]
[346684552,1735179055405,-500.0,0.00013799,2]
[346684553,1735179055415,-1012.38,0.00013799,2]
[346684554,1735179055424,-523.9,0.00013799,2]
[346684555,1735179055435,-589.78,0.00013799,2]
[346684556,1735179055444,-500.0,0.00013799,2]
[346684557,1735179055454,-500.0,0.00013799,2]
[346684558,1735179055463,-1647.1,0.00013799,2]
[346684559,1735179055473,-500.0,0.00013799,2]
[346684560,1735179055483,-500.0,0.00013799,2]
[346684561,1735179055493,-500.0,0.000138,2]
[346684562,1735179055503,-378.55,0.000138,2]
[346684563,1735179055512,-500.0,0.000138,2]
[346684564,1735179055522,-500.0,0.000138,2]
[346684565,1735179055531,-500.0,0.000138,2]
[346684566,1735179055541,-500.0,0.000138,2]
[346684567,1735179055551,-500.0,0.000138,2]
[346684568,1735179055560,-500.0,0.000138,2]
[346684569,1735179055570,-500.0,0.000138,2]
[346684570,1735179055580,-641.54,0.000138,2]
[346684571,1735179055589,-1790.25,0.000138,2]
[346684572,1735179055599,-500.0,0.000138,2]
[346684573,1735179055609,-500.0,0.000138,2]
[346684574,1735179055619,-500.0,0.000138,2]
[346684575,1735179055628,-500.0,0.000138,2]
[346684576,1735179055639,-500.0,0.000138,2]
[346684577,1735179055649,-500.0,0.000138,2]
[346684578,1735179055658,-500.0,0.000138,2]
[346684579,1735179055668,-500.0,0.000138,2]
[346684580,1735179055677,-213.82,0.000138,2]
[346684581,1735179055686,-500.0,0.000138,2]
[346684582,1735179055696,-500.0,0.000138,2]
[346684583,1735179055706,-487.81746397,0.000138,2]
[346684584,1735179055715,-500.0,0.000138,2]
[346684585,1735179055725,-2082.25,0.000138,2]
[346684586,1735179055736,-500.0,0.000138,2]
[346684587,1735179055745,-500.0,0.000138,2]
[346684588,1735179055755,-1371.26,0.000138,2]
[346684589,1735179055766,-500.0,0.00013801,2]
[346684590,1735179055775,-500.0,0.00013801,2]
[346684591,1735179055784,-500.0,0.00013801,2]
[346684592,1735179055795,-500.0,0.00013801,2]
[346684593,1735179055805,-500.0,0.00013801,2]
[346684594,1735179055814,-500.0,0.00013801,2]
[346684595,1735179055824,-500.0,0.00013801,2]
[346684596,1735179055833,-500.0,0.00013801,2]
[346684597,1735179055844,-500.0,0.00013801,2]
[346684598,1735179055854,-1933.337201,0.00013801,2]
[346684599,1735179055863,-1933.337201,0.00013801,2]
[346684600,1735179055872,-151.0,0.00013801,2]
[346684601,1735179055882,-523.21,0.00013801,2]
[346684602,1735179055891,-460.66,0.00013802,2]
[346684603,1735179055901,-500.0,0.00013803,2]
[346684604,1735179055911,-500.0,0.00013803,2]
[346684605,1735179055920,-500.0,0.00013803,2]
[346684606,1735179055930,-150.1060216,0.00013859,2]
[346684607,1735179055939,-48863.41349266,0.00013888,2]
[346684608,1735179055949,-250.5,0.000139,2]
[346684609,1735179055959,-666.0,0.000139,2]
[346684610,1735179055968,-2006.05400799,0.000139,2]
[346684611,1735179055981,-151.0,0.000139,2]
[346684612,1735179055990,-3998.25118228,0.000139,2]
[346684613,1735179055999,-400.0,0.00013973,2]
[346684614,1735179056008,-151.0,0.00013995,2]
[346684615,1735179056018,-252.202903,0.00013995,2]
[346684616,1735179056027,-163.612511,0.00013995,2]
[346684617,1735179056037,-163.612511,0.00013995,2]
[346684618,1735179056046,-156.920579,0.00013995,2]
[346684619,1735179056056,-181.962111,0.00013995,2]
[346684620,1735179056066,-181.962111,0.00013995,2]
[346684621,1735179056075,-193.494819,0.00013995,2]
[346684622,1735179056087,-193.494819,0.00013995,2]
[346684623,1735179056096,-151.0,0.00013995,2]
[346684624,1735179056106,-151.0,0.00013995,2]
[346684625,1735179056115,-151.0,0.00013995,2]
[346684626,1735179056126,-193.0,0.00013995,2]
[346684627,1735179056135,-194.43,0.00013995,2]
[346684628,1735179056145,-151.0,0.00013999,2]
[346684629,1735179056154,-203.938019,0.00013999,2]
[346684630,1735179056165,-252.572149,0.00013999,2]
[346684631,1735179056175,-252.572149,0.00013999,2]
[346684632,1735179056184,-160.0,0.00014,18]
[346684633,1735179056194,-301.06391083,0.00014,5]
[346684634,1735179056204,-2830997.916833,0.00014,2]
[346684635,1735179056328,-186346.67613127,0.00014,2]
[346684636,1735179056340,-6460.09950869,0.00014,2]
[346684637,1735179056357,-1865.34059203,0.00014,2]
[346684638,1735179056368,-314.74,0.00014,2]
[346684639,1735179056379,-2972.5680056,0.00014,2]
[346684640,1735179056604,-304.23979383,0.00012704,2]
[346684641,1735179056616,-195.76020617,0.00012704,2]
[346684642,1735179056625,-3385.25706937,0.00014,2]
[346684643,1735179056669,-493.28256153,0.00012704,2]
[346684645,1735179266180,2509.8705979,0.00023,120]
[346684653,1735180025691,1060.7494545,9.89e-05,2]
[346684654,1735180055464,250.0,9.626e-05,2]
[346684656,1735180173840,160.9460083,9.973e-05,2]
[346684657,1735180195224,-450.0,0.00010175,2]
[346684659,1735180195251,-774.53887929,0.00010278,2]
[346684660,1735180195283,-451.9404934,0.00010278,2]
[346684661,1735180195377,-1224.53887929,0.00010278,2]
[346684778,1735180238049,-1308.44536904,0.00010278,2]
[346684779,1735180238059,-300.0,0.00010378,2]
[346684781,1735180238068,-300.0,0.00010378,2]
[346684782,1735180238077,-465.57027984,0.00010379,2]
[346684783,1735180238086,-2322.48,0.00010379,2]
[346684784,1735180238096,-777.23,0.00010379,2]
[346684785,1735180238105,-321.20928335,0.00010379,2]
[346684786,1735180238114,-801.47,0.00010379,2]
[346684787,1735180238124,-500.0,0.00010379,2]
[346684788,1735180238133,-500.0,0.00010379,2]
[346684789,1735180238143,-500.0,0.00010379,2]
[346684790,1735180238152,-500.0,0.00010379,2]
[346684791,1735180238162,-312.46261941,0.00010379,2]
[346684792,1735180238171,-363.9694502,0.00010379,2]
[346684793,1735180238181,-500.0,0.00010379,2]
[346684794,1735180238190,-1303.96,0.00010379,2]
[346684795,1735180238198,-500.0,0.00010379,2]
[346684796,1735180238207,-500.0,0.00010379,2]
[346684797,1735180238216,-369.74299823,0.00010379,2]
[346684798,1735180238227,-138.14700177,0.00010379,2]
[346684799,1735180238235,-500.0,0.00010379,2]
[346684800,1735180238244,-46.1456864,0.00010379,2]
[346684801,1735180238259,-453.8543136,0.00010379,2]
[346684802,1735180238269,-2456.39000836,0.0001038,2]
[346684803,1735180238280,-22443.60999164,0.0001038,2]
[346684804,1735180238289,-2322.48,0.00010653,2]
[346684805,1735180238299,-777.23,0.00010653,2]
[346684806,1735180238308,-801.47,0.00010653,2]
[346684807,1735180238317,-500.0,0.00010653,2]
[346684808,1735180238326,-500.0,0.00010653,2]
[346684809,1735180238335,-500.0,0.00010653,2]
[346684810,1735180238344,-500.0,0.00010653,2]
[346684811,1735180238353,-500.0,0.00010653,2]
[346684812,1735180238363,-1303.96,0.00010653,2]
[346684813,1735180238371,-500.0,0.00010653,2]
[346684814,1735180238381,-262.20604352,0.00010653,2]
[346684815,1735180238390,-507.89,0.00010653,2]
[346684816,1735180238399,-500.0,0.00010653,2]
[346684817,1735180238408,-500.0,0.00010653,2]
[346684818,1735180238417,-1140.5457129,0.00010655,2]
[346684819,1735180238426,-185.3876932,0.00010891,2]
[346684820,1735180238435,-2322.48,0.00010927,2]
[346684821,1735180238444,-777.23,0.00010927,2]
[346684822,1735180238453,-801.47,0.00010927,2]
[346684823,1735180238462,-500.0,0.00010927,2]
[346684824,1735180238472,-500.0,0.00010927,2]
[346684825,1735180238481,-500.0,0.00010927,2]
[346684826,1735180238490,-500.0,0.00010927,2]
[346684827,1735180238500,-500.0,0.00010927,2]
[346684828,1735180238509,-1303.96,0.00010927,2]
[346684829,1735180238518,-500.0,0.00010927,2]
[346684830,1735180238528,-507.89,0.00010927,2]
[346684831,1735180238537,-500.0,0.00010927,2]
[346684832,1735180238546,-500.0,0.00010927,2]
[346684833,1735180238556,-445.92212,0.00010959,2]
[346684834,1735180238565,-500.0,0.000112,2]
[346684835,1735180238574,-500.0,0.000112,2]
[346684836,1735180238583,-500.0,0.000112,2]
[346684837,1735180238592,-500.0,0.000112,2]
[346684838,1735180238601,-614.17779405,0.000112,2]
[346684839,1735180238610,-160.16975039,0.000112,2]
[346684840,1735180238619,-500.0,0.000112,2]
[346684841,1735180238629,-500.0,0.000112,2]
[346684842,1735180238638,-500.0,0.000112,2]
[346684843,1735180238648,-500.0,0.000112,2]
[346684844,1735180238658,-342.50063999,0.000112,2]
[346684845,1735180238668,-500.0,0.000112,2]
[346684846,1735180238678,-500.0,0.000112,2]
[346684847,1735180238690,-500.0,0.000112,2]
[346684848,1735180238700,-500.0,0.000112,2]
[346684849,1735180238710,-579.72065525,0.000112,2]
[346684850,1735180238719,-500.0,0.000112,2]
[346684851,1735180238728,-500.0,0.000112,2]
[346684852,1735180238737,-500.0,0.000112,2]
[346684853,1735180238746,-500.0,0.000112,2]
[346684854,1735180238755,-500.0,0.000112,2]
[346684855,1735180238764,-500.0,0.000112,2]
[346684856,1735180238775,-500.0,0.000112,2]
[346684857,1735180238785,-500.0,0.000112,2]
[346684858,1735180238794,-500.0,0.000112,2]
[346684859,1735180238803,-500.0,0.000112,2]
[346684860,1735180238811,-500.0,0.000112,2]
[346684861,1735180238821,-500.0,0.000112,2]
[346684862,1735180238830,-500.0,0.000112,2]
[346684863,1735180238840,-500.0,0.000112,2]
[346684864,1735180238849,-500.0,0.000112,2]
[346684865,1735180238859,-500.0,0.000112,2]
[346684866,1735180238868,-500.0,0.000112,2]
[346684867,1735180238878,-500.0,0.000112,2]
[346684868,1735180238886,-500.0,0.000112,2]
[346684869,1735180238896,-500.0,0.000112,2]
[346684870,1735180238905,-500.0,0.000112,2]
[346684871,1735180238914,-545.57860689,0.000112,2]
[346684872,1735180238923,-500.0,0.000112,2]
[346684873,1735180238931,-500.0,0.000112,2]
[346684874,1735180238940,-500.0,0.000112,2]
[346684875,1735180238949,-500.0,0.000112,2]
[346684876,1735180238958,-500.0,0.000112,2]
[346684877,1735180238967,-500.0,0.000112,2]
[346684878,1735180238975,-500.0,0.000112,2]
[346684879,1735180238984,-500.0,0.000112,2]
[346684880,1735180238993,-500.0,0.000112,2]
[346684881,1735180239002,-500.0,0.000112,2]
[346684882,1735180239011,-500.0,0.000112,2]
[346684883,1735180239021,-500.0,0.000112,2]
[346684884,1735180239030,-500.0,0.000112,2]
[346684885,1735180239039,-500.0,0.000112,2]
[346684886,1735180239049,-423.38712297,0.000112,2]
[346684887,1735180239059,-500.0,0.000112,2]
[346684888,1735180239068,-500.0,0.000112,2]
[346684889,1735180239077,-500.0,0.000112,2]
[346684890,1735180239086,-500.0,0.000112,2]
[346684891,1735180239096,-635.91669774,0.000112,2]
[346684892,1735180239105,-500.0,0.000112,2]
[346684893,1735180239114,-2322.48,0.00011201,2]
[346684894,1735180239123,-777.23,0.00011201,2]
[346684895,1735180239132,-801.47,0.00011201,2]
[346684896,1735180239141,-500.0,0.00011201,2]
[346684897,1735180239150,-500.0,0.00011201,2]
[346684898,1735180239159,-500.0,0.00011201,2]
[346684899,1735180239168,-500.0,0.00011201,2]
[346684900,1735180239177,-500.0,0.00011201,2]
[346684901,1735180239186,-1303.96,0.00011201,2]
[346684902,1735180239195,-279.5083949,0.00011201,2]
[346684903,1735180239204,-507.89,0.00011201,2]
[346684904,1735180239213,-500.0,0.00011201,2]
[346684905,1735180239223,-500.0,0.00011201,2]
[346684906,1735180239233,-8929.1269304,0.00011235,2]
[346684907,1735180239243,-420.0,0.00011411,2]
[346684908,1735180239254,-420.0,0.00011416,2]
[346684909,1735180239264,-2322.48,0.00011475,2]
[346684910,1735180239274,-777.23,0.00011475,2]
[346684911,1735180239283,-801.47,0.00011475,2]
[346684912,1735180239292,-500.0,0.00011475,2]
[346684913,1735180239301,-500.0,0.00011475,2]
[346684914,1735180239311,-500.0,0.00011475,2]
[346684915,1735180239320,-500.0,0.00011475,2]
[346684916,1735180239330,-500.0,0.00011475,2]
[346684917,1735180239339,-1303.96,0.00011475,2]
[346684918,1735180239349,-507.89,0.00011475,2]
[346684919,1735180239360,-500.0,0.00011475,2]
[346684920,1735180239369,-196.82188083,0.00011475,2]
[346684921,1735180239378,-165.03505992,0.00011649,2]
[346684922,1735180239388,-235.2424736,0.00011658,2]
[346684923,1735180239398,-500.0,0.00011703,2]
[346684924,1735180239407,-500.0,0.00011703,2]
[346684925,1735180239417,-500.0,0.00011703,2]
[346684926,1735180239428,-500.0,0.00011703,2]
[346684927,1735180239437,-500.0,0.00011703,2]
[346684928,1735180239447,-500.0,0.00011703,2]
[346684929,1735180239458,-500.0,0.00011703,2]
[346684930,1735180239469,-500.0,0.00011703,2]
[346684931,1735180239479,-2322.48,0.00011749,2]
[346684932,1735180239488,-777.23,0.00011749,2]
[346684933,1735180239498,-801.47,0.00011749,2]
[346684934,1735180239507,-500.0,0.00011749,2]
[346684935,1735180239518,-500.0,0.00011749,2]
[346684936,1735180239530,-500.0,0.00011749,2]
[346684937,1735180239539,-500.0,0.00011749,2]
[346684938,1735180239549,-500.0,0.00011749,2]
[346684939,1735180239560,-1303.96,0.00011749,2]
[346684940,1735180239570,-507.89,0.00011749,2]
[346684941,1735180239579,-500.0,0.00011749,2]
[346684942,1735180239588,-500.0,0.00011977,2]
[346684943,1735180239597,-500.0,0.00011977,2]
[346684944,1735180239608,-500.0,0.00011977,2]
[346684945,1735180239617,-500.0,0.00011977,2]
[346684947,1735180239626,-500.0,0.00011977,2]
[346684948,1735180239635,-252.38,0.00011977,2]
[346684949,1735180239645,-500.0,0.00011977,2]
[346684951,1735180239655,-500.0,0.00011977,2]
[346684953,1735180239665,-300.37687854,0.00012,2]
[346684954,1735180239674,-2322.48,0.00012023,2]
[346684956,1735180239686,-777.23,0.00012023,2]
[346684957,1735180239702,-801.47,0.00012023,2]
[346684958,1735180239712,-500.0,0.00012023,2]
[346684959,1735180239721,-500.0,0.00012023,2]
[346684960,1735180239731,-500.0,0.00012023,2]
[346684961,1735180239742,-500.0,0.00012023,2]
[346684962,1735180239753,-500.0,0.00012023,2]
[346684963,1735180239764,-1303.96,0.00012023,2]
[346684964,1735180239773,-507.89,0.00012023,2]
[346684965,1735180239782,-500.0,0.00012023,2]
[346684966,1735180239792,-198.19,0.00012251,2]
[346684967,1735180239802,-500.0,0.00012251,2]
[346684968,1735180239811,-541.33,0.00012251,2]
[346684969,1735180239820,-500.0,0.00012251,2]
[346684970,1735180239829,-500.0,0.00012251,2]
[346684972,1735180239839,-500.0,0.00012251,2]
[346684973,1735180239848,-500.0,0.00012251,2]
[346684974,1735180239857,-2322.48,0.00012296,2]
[346684975,1735180239867,-777.23,0.00012296,2]
[346684976,1735180239876,-801.47,0.00012296,2]
[346684977,1735180239884,-500.0,0.00012296,2]
[346684978,1735180239894,-500.0,0.00012296,2]
[346684979,1735180239903,-523.10655511,0.00012296,2]
[346684980,1735180239911,-500.0,0.00012296,2]
[346684981,1735180239921,-500.0,0.00012296,2]
[346684982,1735180239931,-1303.96,0.00012296,2]
[346684983,1735180239941,-507.89,0.00012296,2]
[346684984,1735180239950,-380.5436286,0.00012296,2]
[346684985,1735180239960,-502.64167918,0.00012429,2]
[346684986,1735180239977,-311.17847836,0.00012429,2]
[346684987,1735180239986,-500.0,0.00012429,2]
[346684988,1735180239996,-614.64468789,0.00012429,2]
[346684989,1735180240007,-502.31100259,0.00012429,2]
[346684990,1735180240017,-425.86280284,0.00012429,2]
[346684991,1735180240028,-9815.95642091,0.000125,2]
[346684992,1735180240037,-500.0,0.00012524,2]
[346684993,1735180240047,-500.0,0.00012524,2]
[346684994,1735180240056,-500.0,0.00012524,2]
[346684995,1735180240066,-473.26,0.00012524,2]
[346684996,1735180240075,-500.0,0.00012524,2]
[346684997,1735180240084,-500.0,0.00012524,2]
[346684998,1735180240097,-641.69,0.00012524,2]
[346684999,1735180240107,-500.0,0.00012524,2]
[346685000,1735180240116,-535.78293191,0.00012524,2]
[346685001,1735180240125,-500.0,0.00012524,2]
[346685002,1735180240134,-500.0,0.00012524,2]
[346685003,1735180240143,-168.52,0.00012524,2]
[346685004,1735180240152,-500.0,0.00012524,2]
[346685005,1735180240162,-387.70853491,0.00012524,2]
[346685006,1735180240171,-500.0,0.00012524,2]
[346685007,1735180240180,-500.0,0.00012524,2]
[346685008,1735180240189,-500.0,0.00012524,2]
[346685009,1735180240198,-500.0,0.00012524,2]
[346685010,1735180240208,-500.0,0.00012524,2]
[346685011,1735180240217,-1085.58,0.00012524,2]
[346685012,1735180240226,-500.0,0.00012524,2]
[346685013,1735180240235,-500.0,0.00012524,2]
[346685014,1735180240245,-500.0,0.00012524,2]
[346685015,1735180240254,-338.54438716,0.00012524,2]
[346685016,1735180240263,-500.0,0.00012525,2]
[346685017,1735180240272,-500.0,0.00012525,2]
[346685018,1735180240281,-253.04,0.00012525,2]
[346685019,1735180240291,-500.0,0.00012525,2]
[346685020,1735180240301,-500.0,0.00012525,2]
[346685021,1735180240310,-587.0,0.00012548,2]
[346685022,1735180240319,-587.0,0.00012557,2]
[346685023,1735180240329,-2322.48,0.0001257,2]
[346685024,1735180240338,-777.23,0.0001257,2]
[346685025,1735180240348,-801.47,0.0001257,2]
[346685026,1735180240358,-500.0,0.0001257,2]
[346685027,1735180240368,-330.71067264,0.0001257,2]
[346685028,1735180240380,-500.0,0.0001257,2]
[346685029,1735180240390,-500.0,0.0001257,2]
[346685030,1735180240400,-1303.96,0.0001257,2]
[346685031,1735180240411,-507.89,0.0001257,2]
[346685032,1735180240421,-325.49871691,0.00012702,2]
[346685033,1735180240430,-500.0,0.00012702,2]
[346685034,1735180240528,-191.74,0.00012702,2]
[346685035,1735180240538,-500.0,0.00012702,2]
[346685036,1735180240547,-500.0,0.00012702,2]
[346685037,1735180240556,-500.0,0.00012702,2]
[346685038,1735180240565,-501.7852892,0.00012702,2]
[346685039,1735180240574,-500.0,0.00012702,2]
[346685040,1735180240583,-500.66135085,0.00012702,2]
[346685041,1735180240592,-500.0,0.00012702,2]
[346685042,1735180240601,-500.0,0.00012702,2]
[346685043,1735180240610,-500.0,0.00012702,2]
[346685044,1735180240619,-292.6626202,0.00012702,2]
[346685045,1735180240628,-500.0,0.00012702,2]
[346685046,1735180240637,-500.0,0.00012702,2]
[346685047,1735180240647,-500.0,0.00012702,2]
[346685048,1735180240656,-500.0,0.00012702,2]
[346685049,1735180240666,-500.0,0.00012702,2]
[346685050,1735180240676,-500.6850025,0.00012702,2]
[346685051,1735180240685,-500.0,0.00012702,2]
[346685052,1735180240696,-500.33349359,0.00012702,2]
[346685053,1735180240706,-500.0,0.00012702,2]
[346685054,1735180240715,-500.0,0.00012702,2]
[346685055,1735180240726,-500.0,0.00012702,2]
[346685056,1735180240735,-500.0,0.00012702,2]
[346685057,1735180240745,-500.0,0.00012702,2]
[346685058,1735180240754,-500.0,0.00012702,2]
[346685059,1735180240763,-500.0,0.00012702,2]
[346685060,1735180240773,-500.0,0.00012702,2]
[346685061,1735180240782,-500.0,0.00012702,2]
[346685062,1735180240791,-500.0,0.00012702,2]
[346685063,1735180240801,-500.0,0.00012702,2]
[346685064,1735180240811,-500.0,0.00012702,2]
[346685065,1735180240821,-500.34399377,0.00012702,2]
[346685066,1735180240830,-500.0,0.00012702,2]
[346685067,1735180240839,-500.0,0.00012702,2]
[346685068,1735180240848,-500.0,0.00012702,2]
[346685069,1735180240859,-500.0,0.00012702,2]
[346685070,1735180240868,-500.0,0.00012702,2]
[346685071,1735180240878,-500.0,0.00012702,2]
[346685072,1735180240889,-500.0,0.00012702,2]
[346685073,1735180240898,-500.0,0.00012702,2]
[346685074,1735180240907,-500.0,0.00012702,2]
[346685075,1735180240917,-500.0,0.00012702,2]
[346685076,1735180240926,-500.37738533,0.00012702,2]
[346685077,1735180240936,-500.0,0.00012702,2]
[346685078,1735180240945,-504.90804089,0.00012702,2]
[346685079,1735180240954,-500.0,0.00012702,2]
[346685080,1735180240963,-501.76966887,0.00012702,2]
[346685081,1735180240973,-500.0,0.00012702,2]
[346685082,1735180240982,-500.0,0.00012702,2]
[346685083,1735180240991,-1417.28,0.00012702,2]
[346685084,1735180241000,-500.0,0.00012702,2]
[346685085,1735180241009,-500.0,0.00012702,2]
[346685086,1735180241018,-500.0,0.00012702,2]